bitfinex-derivatives/quotes_SOLF0:USTF0_20250507
["timestamp","ask_amount","ask_price","bid_price","bid_amount"]
[1746635419604,4.11028358,145.19,145.14,29.96]
[1746635419802,6.8869,145.2,145.14,29.96]
[1746635420005,4.11028157,145.19,145.14,29.96]
[1746635420205,6.8869,145.2,145.14,29.96]
[1746635420406,4.10287921,145.19,145.17,6.888]
[1746635420605,6.8869,145.2,145.17,6.888]
[1746635420805,4.10288502,145.19,145.17,6.888]
[1746635421104,6.8869,145.2,145.17,6.888]
[1746635421305,4.10089773,145.19,145.17,6.888]
[1746635421506,6.8869,145.2,145.17,6.888]
[1746635422804,2.1219,145.24,145.14,29.96]
[1746635423106,4.09665617,145.23,145.14,32.0612]
[1746635423409,4.09665617,145.22,145.2,6.8866]
[1746635423706,4.09665617,145.22,145.15,2.1778]
[1746635423906,4.09665617,145.21,145.19,6.8868]
[1746635424805,4.09665617,145.21,145.15,2.1778]
[1746635425009,2.1219,145.24,145.15,2.1778]
[1746635425209,4.08936499,145.23,145.15,2.1778]
[1746635425510,6.8869,145.2,145.17,6.8876]
[1746635426010,6.8872,145.19,145.17,6.8876]
[1746635426308,2.1219,145.24,145.17,6.8876]
[1746635426508,4.0921344,145.23,145.17,6.8876]
[1746635426710,6.8869,145.2,145.17,6.8876]
[1746635426908,2.1219,145.24,145.16,6.8883]
[1746635427110,6.8869,145.2,145.14,32.0612]
[1746635427512,6.8869,145.2,145.17,6.888]
[1746635428312,6.8869,145.2,145.18,6.8876]
[1746635428512,6.8864,145.21,145.18,6.8876]
[1746635428712,4.10559861,145.2,145.18,6.8876]
[1746635428908,6.8864,145.21,145.18,6.8876]
[1746635429109,4.10562586,145.2,145.18,6.8876]
[1746635429310,2.1219,145.24,145.18,6.8876]
[1746635429513,4.10638846,145.23,145.18,6.8876]
[1746635429815,6.8864,145.21,145.19,6.8871]
[1746635430004,4.09169289,145.2,145.14,32.0612]
[1746635430209,6.8864,145.21,145.14,32.0612]
[1746635430410,4.09299955,145.2,145.14,32.0612]
[1746635430611,6.8864,145.21,145.18,6.8874]
[1746635430811,4.09112946,145.2,145.18,6.8874]
[1746635431012,6.8864,145.21,145.18,6.8874]
[1746635431209,4.09113132,145.2,145.18,6.8874]
[1746635431410,6.8864,145.21,145.19,6.8871]
[1746635431610,4.09307537,145.2,145.19,6.8871]
[1746635431807,4.09618206,145.2,145.19,6.8871]
[1746635432013,4.09618266,145.21,145.2,6.8867]
[1746635432216,4.09619469,145.21,145.2,6.8867]
[1746635432819,4.09619469,145.21,145.19,6.8869]
[1746635433013,4.09619469,145.2,145.19,6.8869]
[1746635433517,4.09619469,145.21,145.19,6.8869]
[1746635433820,32.0762,145.25,145.18,30.38]
[1746635434115,4.09922889,145.24,145.18,30.38]
[1746635434315,4.09922889,145.23,145.18,30.38]
[1746635434516,4.09922889,145.22,145.18,30.38]
[1746635434817,6.884,145.26,145.18,30.38]
[1746635435016,4.09805838,145.25,145.23,6.8852]
[1746635435217,4.09805838,145.24,145.23,6.8852]
[1746635435410,4.09926391,145.24,145.23,6.8852]
[1746635436019,4.09926391,145.24,145.22,6.8855]
[1746635436214,4.09926391,145.23,145.18,30.38]
[1746635436419,4.09926391,145.22,145.18,30.38]
[1746635436619,4.09926391,145.21,145.18,30.38]
[1746635436815,6.8852,145.23,145.18,30.38]
[1746635437014,4.11176424,145.22,145.18,30.38]
[1746635437216,4.11176424,145.21,145.18,30.38]
[1746635437520,4.11319744,145.2,145.18,30.38]
[1746635437714,6.885,145.24,145.18,30.38]
[1746635437910,4.11320313,145.23,145.18,30.38]
[1746635438122,4.11320313,145.22,145.2,6.8864]
[1746635438420,4.11320313,145.21,145.2,6.8864]
[1746635438622,4.11320313,145.21,145.19,6.8869]
[1746635438826,4.11320313,145.2,145.19,6.8869]
[1746635440021,6.885,145.24,145.2,6.8863]
[1746635440222,4.10873228,145.23,145.2,6.8863]
[1746635440522,4.10873228,145.22,145.18,30.38]
[1746635440719,4.10883592,145.21,145.18,30.38]
[1746635440920,30.38,145.28,145.18,30.38]
[1746635441121,6.8844,145.25,145.18,30.38]
[1746635441321,4.11000046,145.24,145.18,30.38]
[1746635441519,4.11000046,145.23,145.18,30.38]
[1746635441719,4.11000046,145.22,145.21,6.8857]
[1746635444729,4.11000046,145.22,145.2,6.8862]
[1746635444923,31.75665198,145.28,145.18,30.38]
[1746635445128,4.09231031,145.27,145.18,30.38]
[1746635445331,10.97661031,145.26,145.22,6.8855]
[1746635445529,4.09231031,145.25,145.22,6.8855]
[1746635445828,4.09231031,145.24,145.22,6.8855]
[1746635446029,4.09231031,145.23,145.21,6.8859]
[1746635446229,4.1030892,145.22,145.21,6.8859]
[1746635447830,4.1030892,145.22,145.18,30.38]
[1746635448032,4.1030892,145.21,145.18,30.38]
[1746635448230,4.1030892,145.2,145.18,30.38]
[1746635448531,31.75665198,145.28,145.18,30.38]
[1746635448730,6.8861,145.22,145.19,6.8869]
[1746635449034,4.09739692,145.21,145.18,30.38]
[1746635449332,10.98429692,145.2,145.18,30.38]
[1746635449531,6.8869,145.2,145.18,30.38]
[1746635449732,4.1089821,145.19,145.18,30.38]
[1746635450130,10.9960821,145.19,145.18,30.38]
[1746635450529,4.1089821,145.19,145.18,30.38]
[1746635451239,10.9960821,145.19,145.16,6.8884]
[1746635451436,4.1089821,145.18,145.16,6.8884]
[1746635451734,4.1089821,145.17,145.16,6.8884]
[1746635452130,4.1089821,145.19,145.15,30.38]
[1746635452332,4.1089821,145.18,145.15,30.38]
[1746635452531,6.8854,145.23,145.2,6.8866]
[1746635452730,4.12189155,145.22,145.2,6.8866]
[1746635452926,4.12189155,145.21,145.19,30.38]
[1746635453132,4.12189155,145.2,145.19,30.38]
[1746635453338,4.12189155,145.2,145.19,37.2669]
[1746635455136,4.11598107,145.2,145.19,37.2669]
[1746635456938,4.1161352,145.2,145.19,37.2669]
[1746635457137,4.1161352,145.2,145.19,30.38]
[1746635460739,4.1161352,145.2,145.15,30.68]
[1746635461043,4.1161352,145.19,145.13,625.74]
[1746635461241,11.0040352,145.18,145.13,625.74]
[1746635461439,4.1161352,145.17,145.13,625.74]
[1746635461641,4.1161352,145.16,145.13,625.74]
[1746635461842,4.1161352,145.15,145.13,625.74]
[1746635462146,4.1161352,145.14,145.13,632.63]
[1746635462446,4.1161352,145.16,145.13,625.74]
[1746635462647,4.1161352,145.15,145.13,625.74]
[1746635462945,4.1161352,145.14,145.13,632.6297]
[1746635463345,4.1161352,145.14,145.13,30.68]
[1746635465045,4.1161352,145.14,145.13,37.57]
[1746635465243,4.1161352,145.16,145.13,37.57]
[1746635465442,4.14209496,145.15,145.13,37.57]
[1746635465642,4.14209496,145.14,145.13,37.57]
[1746635466136,6.8878,145.18,145.14,6.8892]
[1746635466337,4.14196742,145.17,145.14,6.8892]
[1746635466535,4.14196742,145.16,145.14,6.8895]
[1746635466741,4.14196742,145.15,145.14,6.8895]
[1746635467242,4.14012934,145.15,145.14,6.8895]
[1746635467645,4.14012934,145.15,145.13,37.57]
[1746635467847,2.1802,145.2,145.13,37.57]
[1746635468144,4.13956049,145.19,145.13,37.57]
[1746635468343,6.8883,145.17,145.13,37.57]
[1746635468546,4.13956049,145.16,145.13,37.57]
[1746635468847,4.13956049,145.15,145.14,6.8895]
[1746635469046,4.13396207,145.15,145.14,6.8895]
[1746635469749,2.1802,145.2,145.15,6.8888]
[1746635469944,4.12779615,145.19,145.15,6.8888]
[1746635470140,4.12779615,145.18,145.15,6.8888]
[1746635470343,4.12779615,145.17,145.15,6.8888]
[1746635470543,6.8868,145.2,145.16,6.8886]
[1746635470743,4.11565566,145.19,145.13,30.68]
[1746635470944,4.11565566,145.18,145.17,6.8879]
[1746635471143,4.11565566,145.18,145.13,30.68]
[1746635471343,30.68,145.25,145.13,30.68]
[1746635471542,4.11538685,145.24,145.13,43.07508496]
[1746635471749,4.11538685,145.23,145.14,4.0654]
[1746635471947,4.11538685,145.22,145.19,6.8869]
[1746635472144,4.11538685,145.21,145.19,6.8869]
[1746635472348,4.11538685,145.2,145.19,6.8869]
[1746635473846,6.885,145.24,145.2,6.8864]
[1746635474046,4.11019189,145.23,145.2,6.8864]
[1746635474245,4.11019189,145.22,145.2,6.8864]
[1746635474449,4.11019189,145.21,145.2,6.8864]
[1746635475843,6.3014,145.26,145.22,6.8853]
[1746635476040,4.10005048,145.25,145.18,30.68]
[1746635476245,4.10005048,145.24,145.18,30.68]
[1746635476452,4.10005048,145.23,145.18,30.68]
[1746635476650,4.10005048,145.22,145.18,30.68]
[1746635476850,8.26024674,145.27,145.18,30.68]
[1746635477048,4.09666255,145.26,145.18,30.68]
[1746635477253,4.09666255,145.25,145.19,12.39508496]
[1746635477547,4.09666255,145.24,145.23,6.8852]
[1746635477749,4.09666255,145.24,145.23,30.68]
[1746635478148,4.09666255,145.24,145.23,37.5652]
[1746635483257,1.37674674,145.27,145.23,30.68]
[1746635483457,4.08002235,145.26,145.23,30.68]
[1746635483757,1.37674674,145.27,145.23,30.68]
[1746635483955,4.07952015,145.26,145.25,6.8838]
[1746635484456,1.37674674,145.27,145.23,30.68]
[1746635484660,1.37674674,145.27,145.26,6.8838]
[1746635485052,37.4088,145.34,145.23,30.68]
[1746635485357,4.0752212,145.33,145.29,6.8823]
[1746635485559,4.0752212,145.32,145.29,6.8823]
[1746635485863,4.0752212,145.31,145.29,6.8823]
[1746635486058,4.0752212,145.3,145.29,6.8823]
[1746635486956,13.109,145.34,145.3,6.8816]
[1746635487157,4.06680924,145.33,145.3,6.8816]
[1746635487456,4.06680924,145.32,145.3,6.8816]
[1746635487655,4.06680924,145.31,145.3,6.8816]
[1746635487853,4.06680924,145.31,145.28,31.18]
[1746635487854,4.06680924,145.31,145.29,6.8822]
[1746635488057,6.2288,145.34,145.29,6.8822]
[1746635488256,4.06577159,145.33,145.29,6.8822]
[1746635488458,4.06577159,145.32,145.29,6.8822]
[1746635488657,4.06577159,145.31,145.29,6.8822]
[1746635488859,6.8808,145.33,145.29,6.8822]
[1746635489060,10.94480693,145.32,145.29,6.8822]
[1746635489358,4.06370693,145.31,145.29,6.8822]
[1746635489560,6.2288,145.34,145.31,6.8814]
[1746635489761,4.06183192,145.33,145.31,6.8814]
[1746635489953,4.06183192,145.32,145.31,6.8814]
[1746635490861,4.06183192,145.32,145.3,6.8818]
[1746635491156,6.88,145.34,145.3,6.8818]
[1746635491353,4.06041,145.33,145.3,6.8818]
[1746635491554,6.88,145.34,145.3,6.8818]
[1746635491759,4.05842783,145.33,145.3,6.8818]
[1746635491954,6.8797,145.35,145.31,6.8812]
[1746635492161,4.05930009,145.34,145.28,31.18]
[1746635492360,6.554,145.37,145.28,31.18]
[1746635492560,4.05783225,145.36,145.28,31.18]
[1746635492760,4.05783225,145.35,145.28,33.2231]
[1746635492951,6.554,145.37,145.28,33.2231]
[1746635493150,4.05825436,145.36,145.28,33.2231]
[1746635493351,6.554,145.37,145.34,6.8798]
[1746635493558,4.0557969,145.36,145.34,6.8798]
[1746635493759,13.4326,145.37,145.34,6.8798]
[1746635494257,6.554,145.37,145.34,6.8798]
[1746635494963,13.4329,145.37,145.34,6.8798]
[1746635498164,6.554,145.37,145.33,31.16]
[1746635498862,6.8798,145.35,145.33,31.16]
[1746635499160,6.554,145.37,145.33,31.16]
[1746635499369,6.88,145.34,145.31,6.8812]
[1746635499866,6.88,145.34,145.3,31.16]
[1746635500168,6.88,145.34,145.31,6.8813]
[1746635500771,6.8798,145.35,145.32,6.8809]
[1746635500959,6.554,145.37,145.32,6.8809]
[1746635501165,4.0507838,145.36,145.32,6.8809]
[1746635501465,6.8791,145.36,145.33,6.8804]
[1746635501665,6.8791,145.36,145.3,31.16]
[1746635501970,13.4328,145.37,145.3,31.16]
[1746635502267,6.554,145.37,145.3,31.16]
[1746635502872,6.8794,145.36,145.33,6.8802]
[1746635503169,6.554,145.37,145.33,6.8802]
[1746635503371,10.92443125,145.36,145.33,6.8802]
[1746635503568,6.8793,145.36,145.33,6.8802]
[1746635503768,6.8793,145.36,145.34,6.8799]
[1746635504371,13.4328,145.37,145.34,6.8799]
[1746635504568,13.4328,145.37,145.36,6.8791]
[1746635504569,6.554,145.37,145.36,6.8791]
[1746635505971,2.203,145.37,145.3,31.16]
[1746635506173,6.8786,145.38,145.3,31.16]
[1746635506473,6.8786,145.38,145.34,6.8798]
[1746635506871,6.8787,145.37,145.34,38.0398]
[1746635507574,6.8787,145.37,145.34,31.16]
[1746635507774,6.8791,145.36,145.34,31.16]
[1746635509673,31.16,145.4,145.34,38.0397]
[1746635510279,6.8789,145.37,145.34,38.0397]
[1746635516175,6.8791,145.36,145.34,31.16]
[1746635516370,12.39508496,145.42,145.34,31.16]
[1746635516571,13.7704116,145.42,145.34,31.16]
[1746635516773,6.8796,145.35,145.34,31.16]
[1746635517372,6.8796,145.35,145.28,22.34752]
[1746635517580,43.55508496,145.39,145.31,31.16]
[1746635517773,6.4055,145.38,145.32,6.8807]
[1746635517973,6.8799,145.35,145.32,6.8807]
[1746635518267,6.8799,145.35,145.33,6.8803]
[1746635518470,6.4055,145.38,145.31,31.16]
[1746635518974,1.37542122,145.41,145.31,31.16]
[1746635519176,6.8784,145.38,145.31,31.16]
[1746635519670,6.8784,145.38,145.35,6.8793]
[1746635520374,6.8774,145.4,145.36,6.8791]
[1746635520582,1.37542122,145.41,145.36,6.8791]
[1746635521382,1.37542122,145.41,145.35,38.0394]
[1746635521774,1.37542122,145.41,145.35,31.16]
[1746635522988,1.37542122,145.41,145.32,31.16]
[1746635523177,4.06677071,145.4,145.32,31.16]
[1746635523379,4.06677071,145.39,145.32,31.16]
[1746635523579,4.06677071,145.38,145.32,31.16]
[1746635523774,6.8793,145.36,145.33,6.8803]
[1746635523974,6.8793,145.36,145.32,31.16]
[1746635524184,4.06894286,145.35,145.32,31.16]
[1746635524378,6.8788,145.37,145.34,6.88]
[1746635524577,4.07228044,145.36,145.34,6.88]
[1746635524778,4.07228044,145.35,145.34,6.88]
[1746635526279,10.95148044,145.36,145.33,6.8802]
[1746635526485,4.07228044,145.35,145.33,6.8802]
[1746635526681,4.07228044,145.34,145.33,6.8802]
[1746635526982,6.8794,145.36,145.33,6.8802]
[1746635527183,4.07228044,145.35,145.33,6.8802]
[1746635527384,4.07228044,145.34,145.33,6.8802]
[1746635527679,4.08591559,145.34,145.32,31.16]
[1746635527881,6.8794,145.36,145.32,31.16]
[1746635528080,4.08699902,145.35,145.32,31.16]
[1746635528281,4.08699902,145.34,145.33,6.8803]
[1746635528786,4.08699902,145.34,145.32,38.0406]
[1746635529087,4.08699902,145.33,145.32,31.16]
[1746635529585,4.08726793,145.33,145.32,38.041]
[1746635530187,4.08726793,145.33,145.32,31.16]
[1746635531081,4.08726793,145.33,145.32,38.041]
[1746635533291,6.8784,145.38,145.35,6.8794]
[1746635534192,6.8779,145.39,145.35,6.8794]
[1746635534386,1.37542122,145.41,145.36,31.16]
[1746635534890,1.37542122,145.41,145.38,6.8778]
[1746635535990,1.37542122,145.41,145.39,6.8774]
[1746635537292,1.37542122,145.41,145.36,31.16]
[1746635537789,43.55508496,145.48,145.4,6.8772]
[1746635537990,43.55508496,145.48,145.4,38.0372]
[1746635538190,43.55508496,145.48,145.4,31.16]
[1746635538490,6.8748,145.46,145.42,6.8762]
[1746635538685,6.8748,145.46,145.4,31.16]
[1746635539293,6.875,145.45,145.4,31.16]
[1746635539485,6.2374,145.49,145.4,31.16]
[1746635539486,6.2374,145.49,145.41,6.8764]
[1746635539685,6.2374,145.49,145.4,31.16]
[1746635539887,6.8748,145.46,145.4,31.16]
[1746635540090,6.8748,145.46,145.42,6.876]
[1746635541291,6.8749,145.45,145.42,6.876]
[1746635541492,6.2374,145.49,145.42,6.876]
[1746635542489,6.8746,145.46,145.43,6.8756]
[1746635544093,6.8741,145.47,145.44,6.8752]
[1746635544596,6.8735,145.48,145.4,31.16]
[1746635544894,31.16,145.51,145.4,31.16]
[1746635545096,6.8732,145.49,145.45,6.8745]
[1746635545797,6.8734,145.48,145.45,6.8745]
[1746635546204,31.16,145.51,145.46,6.8742]
[1746635546500,6.8729,145.5,145.46,6.8742]
[1746635546904,6.2801,145.53,145.47,6.8736]
[1746635547105,6.8723,145.51,145.44,31.24]
[1746635549005,6.8723,145.51,145.48,6.8732]
[1746635549208,6.8717,145.52,145.48,38.1132]
[1746635549709,6.8713,145.53,145.49,6.8729]
[1746635550711,6.8713,145.53,145.5,6.8724]
[1746635551612,6.8713,145.53,145.49,6.8727]
[1746635552005,6.8715,145.52,145.49,6.8727]
[1746635552212,6.8715,145.52,145.48,31.24]
[1746635552213,12.39508496,145.56,145.48,31.24]
[1746635552410,12.39508496,145.56,145.48,38.1131]
[1746635552609,6.8718,145.52,145.48,31.24]
[1746635552810,12.39508496,145.56,145.5,6.8724]
[1746635553010,6.8716,145.52,145.5,6.8724]
[1746635553312,12.39508496,145.56,145.48,31.24]
[1746635553611,12.39508496,145.56,145.5,6.8723]
[1746635554112,12.39508496,145.56,145.48,31.24]
[1746635554813,6.8708,145.54,145.51,6.8717]
[1746635555013,12.39508496,145.56,145.51,6.8717]
[1746635555215,6.8711,145.53,145.51,6.8717]
[1746635555817,12.39508496,145.56,145.48,31.24]
[1746635556317,12.39508496,145.56,145.48,38.1132]
[1746635556511,13.7690888,145.56,145.48,38.1132]
[1746635556712,6.8724,145.51,145.48,38.1132]
[1746635557011,6.8724,145.51,145.49,6.8729]
[1746635557513,13.7690888,145.56,145.48,38.1132]
[1746635557718,1.37409824,145.55,145.48,31.24]
[1746635557917,1.37409824,145.55,145.45,31.22]
[1746635558116,6.8732,145.49,145.45,31.22]
[1746635558614,6.8732,145.49,145.46,6.874]
[1746635558811,43.61508496,145.53,145.45,31.22]
[1746635559419,6.8743,145.46,145.45,31.22]
[1746635559818,6.8743,145.46,145.44,6.8753]
[1746635560521,6.8741,145.47,145.45,6.8748]
[1746635562121,6.8741,145.47,145.44,6.875]
[1746635563521,6.8737,145.48,145.45,6.8748]
[1746635563822,43.61508496,145.53,145.45,6.8748]
[1746635564018,1.37438152,145.52,145.46,6.8743]
[1746635564318,6.8734,145.49,145.46,6.8743]
[1746635564518,1.37438152,145.52,145.47,6.8736]
[1746635565121,6.8728,145.5,145.47,6.8736]
[1746635565622,1.37438152,145.52,145.47,6.8736]
[1746635565922,1.37438152,145.52,145.42,31.22]
[1746635566124,6.2495,145.51,145.42,31.22]
[1746635567125,2.1802,145.51,145.47,6.8739]
[1746635567329,1.37438152,145.52,145.47,6.8739]
[1746635567624,6.8734,145.48,145.46,38.1141]
[1746635568426,6.8732,145.49,145.46,38.1141]
[1746635568626,1.37438152,145.52,145.46,31.24]
[1746635569026,6.8722,145.51,145.47,6.8735]
[1746635569223,6.8722,145.51,145.46,31.24]
[1746635569625,6.8722,145.51,145.47,6.8736]
[1746635570626,8.24608152,145.52,145.48,6.8731]
[1746635571827,1.37438152,145.52,145.49,6.8727]
[1746635572728,8.24608152,145.52,145.49,6.8727]
[1746635573628,6.8721,145.51,145.46,31.24]
[1746635574930,6.8721,145.51,145.47,6.8736]
[1746635575130,6.8721,145.51,145.46,31.24]
[1746635575630,6.8721,145.51,145.48,6.8731]
[1746635579538,6.8725,145.5,145.47,6.8737]
[1746635579831,1.37438152,145.52,145.46,31.24]
[1746635580231,6.8722,145.51,145.48,6.8732]
[1746635580935,6.8725,145.5,145.47,6.8736]
[1746635581438,1.37438152,145.52,145.46,31.24]
[1746635581439,6.8735,145.48,145.46,31.24]
[1746635581737,1.37438152,145.52,145.46,38.1143]
[1746635581931,1.37438152,145.52,145.46,31.24]
[1746635582636,6.8737,145.48,145.46,31.24]
[1746635583838,6.8739,145.47,145.46,31.24]
[1746635584040,2.019,145.51,145.46,31.24]
[1746635584939,6.8739,145.48,145.46,31.24]
[1746635585139,2.1658,145.5,145.46,31.24]
[1746635585336,2.1658,145.5,145.45,6.8746]
[1746635585535,6.8738,145.48,145.45,6.8746]
[1746635585736,2.1658,145.5,145.45,6.8746]
[1746635586037,6.8737,145.48,145.45,6.8746]
[1746635586642,6.8737,145.48,145.46,6.8742]
[1746635587146,6.8737,145.48,145.43,31.12]
[1746635589253,6.8739,145.47,145.45,6.8746]
[1746635589653,2.1658,145.5,145.45,6.8746]
[1746635589955,6.8734,145.49,145.45,6.8748]
[1746635590157,2.1658,145.5,145.45,6.8748]
[1746635590452,6.8737,145.48,145.45,6.8748]
[1746635590856,2.1658,145.5,145.44,6.8752]
[1746635591052,6.8741,145.47,145.44,6.8752]
[1746635591251,2.1658,145.5,145.44,6.8752]
[1746635591851,6.8742,145.47,145.44,6.8752]
[1746635593061,6.8736,145.48,145.45,6.8748]
[1746635593257,6.8736,145.48,145.43,31.12]
[1746635593459,2.1658,145.5,145.43,31.12]
[1746635593654,9.0387,145.5,145.43,31.12]
[1746635593851,2.1658,145.5,145.43,31.12]
[1746635594261,6.8733,145.49,145.46,6.8741]
[1746635594561,2.1658,145.5,145.43,31.12]
[1746635595263,6.8737,145.48,145.45,6.8745]
[1746635595659,2.1658,145.5,145.45,6.8745]
[1746635596056,2.1658,145.5,145.43,31.12]
[1746635596567,6.8753,145.45,145.43,31.12]
[1746635596766,2.1658,145.5,145.4,625.36]
[1746635596962,12.39508496,145.48,145.4,625.36]
[1746635597165,43.51508496,145.48,145.4,625.36]
[1746635597463,43.51508496,145.48,145.42,6.876]
[1746635597762,43.51508496,145.48,145.4,625.36]
[1746635598262,31.12,145.48,145.4,625.36]
[1746635598959,31.12,145.48,145.43,6.8755]
[1746635599360,6.8755,145.44,145.41,6.8763]
[1746635599564,6.8755,145.44,145.4,625.36]
[1746635600162,6.8755,145.44,145.41,6.8766]
[1746635600364,6.8758,145.43,145.41,6.8766]
[1746635601064,6.8755,145.44,145.42,6.8761]
[1746635603168,6.8758,145.43,145.4,31.12]
[1746635603768,6.8755,145.44,145.41,6.8765]
[1746635604268,6.876,145.43,145.41,6.8765]
[1746635605969,6.8762,145.42,145.4,37.997]
[1746635609175,31.12,145.48,145.4,31.12]
[1746635609471,32.49475941,145.48,145.4,31.12]
[1746635609770,6.876,145.43,145.4,37.9968]
[1746635610072,6.876,145.43,145.4,31.12]
[1746635610374,6.876,145.43,145.41,6.8767]
[1746635611268,6.8756,145.44,145.41,6.8767]
[1746635611974,6.8756,145.44,145.42,6.8762]
[1746635612176,6.8756,145.44,145.4,31.12]
[1746635612869,6.8745,145.46,145.4,31.12]
[1746635613075,32.49475941,145.48,145.4,31.12]
[1746635613277,1.37475941,145.48,145.44,6.875]
[1746635613475,6.8741,145.47,145.44,6.875]
[1746635615876,1.37475941,145.48,145.4,31.12]
[1746635616479,1.37475941,145.48,145.4,37.9969]
[1746635616679,30.78,145.47,145.4,37.9969]
[1746635616981,6.876,145.43,145.4,37.9969]
[1746635617181,30.78,145.47,145.4,37.9969]
[1746635617376,30.78,145.47,145.41,6.8765]
[1746635617779,6.8755,145.44,145.41,6.8765]
[1746635619476,6.8755,145.44,145.4,31.12]
[1746635619680,30.78,145.47,145.4,31.12]
[1746635620179,30.78,145.47,145.41,6.8766]
[1746635620578,6.8757,145.44,145.41,6.8766]
[1746635620777,12.39508496,145.46,145.37,30.78]
[1746635621078,17.93213339,145.46,145.37,30.78]
[1746635621378,6.8768,145.41,145.38,6.8779]
[1746635622579,6.8768,145.41,145.39,6.8776]
[1746635626183,2.1577,145.45,145.4,6.8769]
[1746635626882,6.8763,145.42,145.4,6.8769]
[1746635627482,6.876,145.43,145.41,6.8767]
[1746635628483,6.876,145.43,145.4,6.8769]
[1746635628785,6.8764,145.42,145.4,6.8769]
[1746635628978,2.1577,145.45,145.37,30.78]
[1746635629875,1.37494843,145.46,145.37,30.78]
[1746635630074,6.8757,145.44,145.37,30.78]
[1746635630279,6.8757,145.44,145.41,6.8767]
[1746635631579,6.8758,145.43,145.41,6.8767]
[1746635631881,1.37494843,145.46,145.37,30.78]
[1746635632085,6.8751,145.45,145.37,30.78]
[1746635632486,6.8751,145.45,145.42,6.8761]
[1746635633186,6.8755,145.44,145.41,6.8765]
[1746635633485,1.37494843,145.46,145.41,6.8765]
[1746635634288,1.37494843,145.46,145.42,6.8761]
[1746635634488,6.8749,145.45,145.42,6.8761]
[1746635634890,1.37494843,145.46,145.42,6.8761]
[1746635635192,6.8756,145.44,145.42,6.8761]
[1746635636293,6.8758,145.43,145.41,6.8765]
[1746635637689,6.8755,145.44,145.42,6.8759]
[1746635640392,8.24954843,145.46,145.43,6.8755]
[1746635640596,1.37494843,145.46,145.43,6.8755]
[1746635641193,1.37494843,145.46,145.41,30.4]
[1746635641499,6.8762,145.42,145.41,30.4]
[1746635643598,6.8762,145.42,145.39,6.8774]
[1746635643997,6.8769,145.41,145.39,6.8774]
[1746635644296,1.37494843,145.46,145.39,6.8774]
[1746635645094,1.37494843,145.46,145.38,30.4]
[1746635645398,12.39508496,145.44,145.35,30.4]
[1746635645696,6.878,145.39,145.36,6.8788]
[1746635645997,30.4,145.43,145.35,30.4]
[1746635646293,6.8769,145.41,145.35,30.4]
[1746635646704,30.4,145.43,145.35,30.4]
[1746635646891,6.8772,145.4,145.37,6.8784]
[1746635648404,6.8772,145.4,145.38,6.8781]
[1746635648701,6.8769,145.41,145.38,6.8781]
[1746635649100,6.8769,145.41,145.35,30.4]
[1746635649101,6.8773,145.4,145.37,6.8784]
[1746635649398,30.4,145.43,145.35,30.4]
[1746635649599,6.8779,145.39,145.36,6.8786]
[1746635649901,6.8779,145.39,145.35,30.4]
[1746635650192,30.4,145.43,145.35,30.4]
[1746635650698,30.4,145.43,145.35,37.2792]
[1746635650909,30.4,145.43,145.35,30.4]
[1746635651313,30.4,145.43,145.38,6.878]
[1746635651314,6.877,145.41,145.38,6.878]
[1746635652911,6.877,145.41,145.39,6.8776]
[1746635653110,6.8765,145.42,145.35,30.4]